bitfinex/quotes_ETHUSD_20260219
["timestamp","ask_amount","ask_price","bid_price","bid_amount"]
[1771476157701,1.26275381,1979.8,1979.3,0.48977216]
[1771476161682,1.74306553,1979.8,1979.3,0.001]
[1771476162408,0.48031172,1979.6,1979.2,0.001]
[1771476163501,0.48031172,1979.6,1978.9,0.001]
[1771476163502,6.00154128,1979.3,1978.9,0.001]
[1771476164391,1.26313662,1979.2,1978.9,0.001]
[1771476165282,1.74344834,1979.2,1978.9,0.001]
[1771476165487,1.74344834,1979.2,1978.7,0.001]
[1771476165728,0.48031172,1979.1,1978.7,0.001]
[1771476166810,1.26326427,1979.0,1978.7,0.001]
[1771476168588,6.00154128,1978.9,1978.3,0.001]
[1771476168916,1.26339195,1978.8,1978.3,0.48977216]
[1771476170810,7.26491535,1978.9,1978.3,1.75344375]
[1771476171316,7.26491535,1978.9,1978.3,0.48977216]
[1771476171703,0.48031172,1978.6,1978.1,0.001]
[1771476171903,5.52122956,1978.4,1978.0,0.001]
[1771476172291,0.48031172,1978.5,1978.0,0.001]
[1771476173192,1.74395911,1978.4,1978.0,0.001]
[1771476175116,5.05456352,1978.5,1978.0,0.001]
[1771476175117,2.24462177,1978.5,1978.0,0.001]
[1771476175322,1.26362177,1978.5,1978.0,0.001]
[1771476175515,2.24457019,1978.6,1978.0,0.001]
[1771476176416,1.26357019,1978.6,1978.0,0.001]
[1771476177202,2.24450299,1978.7,1978.2,0.48877216]
[1771476179023,2.72481471,1978.7,1978.0,1.75362464]
[1771476179215,0.48031172,1978.6,1978.0,0.48977216]
[1771476179397,0.48031172,1978.6,1978.0,0.001]
[1771476179597,0.48031172,1978.6,1978.1,0.001]
[1771476181419,1.26358352,1978.5,1978.1,0.001]
[1771476181812,1.26358352,1978.5,1978.1,0.47157579]
[1771476183727,2.24659965,1978.7,1978.2,0.47057579]
[1771476184125,0.0011,1978.7,1978.2,0.47057579]
[1771476185001,0.0011,1978.8,1978.2,0.47057579]
[1771476185606,0.0011,1978.8,1978.4,0.47057579]
[1771476187832,0.0011,1978.8,1978.6,0.47057579]
[1771476190741,0.0011,1978.8,1978.7,1.2634558]
[1771476191518,0.0011,1979.0,1978.8,0.47057579]
[1771476191926,1.26387904,1979.8,1978.9,1.075]
[1771476192116,0.45522857,1979.7,1978.9,1.54557579]
[1771476192819,1.26288139,1979.6,1979.0,1.26326427]
[1771476193325,0.0011,1979.0,1978.9,1.73385292]
[1771476195044,0.0011,1979.0,1978.9,0.47057579]
[1771476195244,0.0011,1979.0,1978.7,1.73398753]
[1771476195768,0.0011,1979.0,1978.8,0.47057579]
[1771476195942,1.26287982,1979.7,1978.8,0.47057579]
[1771476196529,1.71810839,1979.7,1978.8,0.47057579]
[1771476196728,7.24081062,1979.7,1978.8,0.47057579]
[1771476196930,0.45522857,1979.6,1978.8,0.47057579]
[1771476197126,5.9779308,1979.3,1978.7,1.26343367]
[1771476197736,5.9779308,1979.3,1978.6,2.33747088]
[1771476197737,0.45522857,1979.2,1978.6,2.33747088]
[1771476199242,1.71838429,1979.2,1978.6,2.33747088]
[1771476199646,5.9779308,1979.1,1978.5,1.26353202]
[1771476200148,0.45522857,1978.9,1978.3,0.001]
[1771476201451,1.26339195,1978.8,1978.3,0.001]
[1771476202548,0.45522857,1978.7,1978.3,0.001]
[1771476204649,1.26351966,1978.6,1978.3,0.001]
[1771476205032,1.26351966,1978.6,1978.4,0.001]
[1771476206830,0.45632857,1979.1,1978.4,0.001]
[1771476207137,2.35349284,1979.0,1978.4,0.001]
[1771476207338,0.45522857,1978.9,1978.4,0.001]
[1771476209556,0.48534295,1978.7,1978.2,0.001]
[1771476210159,0.48534295,1978.7,1978.2,1.26475811]
[1771476210353,0.48534295,1978.7,1978.2,0.001]
[1771476210660,1.26339195,1978.8,1978.2,1.26476761]
[1771476211233,0.48534295,1978.7,1978.0,0.001]
[1771476211431,1.26351966,1978.6,1978.0,1.26489693]
[1771476211863,1.74886261,1978.6,1978.0,1.26489693]
[1771476212042,1.74886261,1978.6,1978.0,1.73584556]
[1771476212352,1.74877679,1978.8,1978.1,0.47094863]
[1771476214162,1.74877679,1978.8,1978.1,1.73473208]
[1771476215652,0.48534295,1978.7,1978.0,1.73584737]
[1771476216655,1.26351966,1978.6,1978.0,1.73584737]
[1771476217483,1.26351966,1978.6,1978.2,0.001]
[1771476218182,1.26351966,1978.6,1978.0,0.001]
[1771476218183,0.48534295,1978.5,1978.0,0.001]
[1771476219080,1.74899034,1978.4,1978.0,0.001]
[1771476220790,0.48534295,1978.3,1978.0,0.001]
[1771476221274,1.26377514,1978.2,1978.0,0.001]
[1771476221480,1.74911809,1978.2,1978.0,0.001]
[1771476221853,1.74911809,1978.2,1977.9,0.001]
[1771476221854,6.01683687,1978.1,1977.8,0.001]
[1771476222160,6.01683687,1978.1,1977.6,0.001]
[1771476222955,6.01683687,1977.9,1977.4,0.911]
[1771476223186,6.01683687,1977.9,1977.1,1.73537334]
[1771476223391,1.26403074,1977.8,1977.1,1.73537334]
[1771476223574,5.53149392,1977.7,1977.1,0.47094863]
[1771476224086,6.01683687,1977.7,1977.0,1.7354489]
[1771476224980,6.01683687,1977.5,1976.8,2.8025953]
[1771476225369,1.26428643,1977.4,1976.8,2.8025953]
[1771476228966,1.26428643,1977.4,1976.9,0.47094863]
[1771476229599,1.26428643,1977.4,1976.9,0.47194863]
[1771476229898,0.48534295,1977.3,1976.9,0.001]
[1771476230066,1.26441432,1977.2,1976.9,0.001]
[1771476230492,1.74975727,1977.2,1976.5,0.47094863]
[1771476230676,1.74975727,1977.2,1976.6,0.001]
[1771476230975,1.26441432,1977.2,1976.6,0.47194863]
[1771476231198,1.26439785,1977.3,1976.6,0.47194863]
[1771476231497,2.24339785,1977.3,1976.6,0.47194863]
[1771476233395,2.24339785,1977.3,1976.7,1.26473415]
[1771476233597,2.24339785,1977.3,1976.7,1.73568278]
[1771476234478,2.24339785,1977.3,1976.7,0.47094863]
[1771476235183,0.48534295,1977.2,1976.6,0.001]
[1771476235382,0.48534295,1977.0,1976.6,0.001]
[1771476235591,1.26447827,1977.1,1976.6,0.001]
[1771476235970,2.24347827,1977.1,1976.6,0.001]
[1771476236897,2.24347827,1977.1,1976.4,0.47094863]
[1771476237075,2.24347827,1977.1,1975.5,0.47094863]
[1771476237076,0.48534295,1976.5,1975.5,0.47094863]
[1771476237404,0.48534295,1976.5,1975.7,0.47094863]
[1771476237405,0.853,1976.5,1975.7,0.47094863]
[1771476237990,1.26479813,1976.6,1975.7,0.47094863]
[1771476238172,2.24579813,1976.6,1975.7,0.47094863]
[1771476238903,2.24579813,1976.6,1974.8,0.47094863]
[1771476238904,0.48534295,1976.4,1974.8,0.47094863]
[1771476239079,0.48534295,1976.2,1974.9,0.47094863]
[1771476239578,1.26511816,1976.1,1975.0,1.26582278]
[1771476239780,1.26511816,1976.1,1975.1,0.45854121]
[1771476240303,0.46069397,1976.0,1975.1,0.45854121]
[1771476240506,2.24611816,1976.1,1975.1,0.45854121]
[1771476241401,1.26511816,1976.1,1975.1,0.45854121]
[1771476241782,1.26511816,1976.1,1975.3,0.45854121]
[1771476242109,6.04100732,1976.3,1975.3,0.45854121]
[1771476242492,18.071938,1976.1,1975.2,0.001]
[1771476242688,6.14340732,1976.3,1974.0,0.45854121]
[1771476242689,5.04109397,1975.7,1974.2,0.45854121]
[1771476242889,6.64145984,1975.9,1974.2,0.45854121]
[1771476242890,5.528112,1975.8,1974.2,0.45854121]
[1771476243189,0.609,1975.7,1975.0,0.001]
[1771476243509,1.06969397,1975.7,1975.0,0.001]
[1771476243709,1.26543834,1975.6,1975.0,0.001]
[1771476244484,1.72613231,1975.6,1975.0,0.001]
[1771476244909,1.26543834,1975.6,1975.0,0.001]
[1771476245113,1.26543834,1975.6,1975.0,0.45954121]
[1771476245820,1.72613231,1975.6,1975.0,0.001]
[1771476246006,1.26543834,1975.6,1975.0,0.45954121]
[1771476247409,11.7024629,1975.9,1975.0,0.45954121]
[1771476247410,5.06108269,1975.9,1975.0,0.45954121]
[1771476247638,5.06108269,1975.9,1974.5,5.06406036]
[1771476247639,0.46069397,1975.5,1974.3,0.45854121]
[1771476247785,1.26563053,1975.3,1974.5,0.45854121]
[1771476248204,1.7263245,1975.3,1974.3,1.72476673]
[1771476248404,1.26563053,1975.3,1974.2,0.45854121]
[1771476250191,1.26563053,1975.3,1974.3,1.26627158]
[1771476250521,1.7263245,1975.3,1974.4,0.45854121]
[1771476251609,0.46069397,1975.9,1974.4,0.45854121]
[1771476251936,0.46069397,1975.6,1974.6,0.45854121]
[1771476252114,0.51127835,1975.5,1974.6,0.45854121]
[1771476252629,1.26556646,1975.4,1974.6,1.72459897]
[1771476253134,1.77682637,1975.5,1974.7,0.45854121]
[1771476253628,17.969538,1975.4,1974.5,1.98]
[1771476253927,0.51127835,1975.3,1974.5,1.98]
[1771476254428,0.51127835,1975.3,1974.5,3.24614054]
[1771476254600,1.26569461,1975.2,1974.5,3.24614054]
[1771476254926,1.26569461,1975.2,1974.5,1.98]
[1771476255530,1.72638858,1975.2,1974.7,0.001]
[1771476255737,1.72638858,1975.2,1974.3,1.26627131]
[1771476255898,1.72638858,1975.2,1974.5,0.001]
[1771476256208,0.46069397,1975.1,1974.5,0.001]
[1771476256397,0.51127835,1975.1,1974.5,0.001]
[1771476256594,1.26582278,1975.0,1974.4,0.001]
[1771476256818,1.26577389,1975.1,1974.4,0.45954121]
[1771476257006,1.31635827,1975.1,1974.4,0.45954121]
[1771476257905,1.3163544,1975.1,1974.4,0.45954121]
[1771476258107,0.05058438,1975.1,1974.4,0.45954121]
[1771476258593,0.05058438,1975.2,1974.4,0.45954121]
[1771476259217,1.26575869,1975.1,1974.5,1.26614332]
[1771476259406,1.31632904,1975.2,1974.5,1.26614332]
[1771476260908,1.31632904,1975.2,1974.4,5.52417949]
[1771476260909,1.31632904,1975.2,1974.4,1.2671982]
[1771476261113,1.31632904,1975.2,1974.5,1.72467566]
[1771476261626,0.05058438,1975.2,1974.6,0.45854121]
[1771476262421,0.0011,1975.5,1974.7,0.05055837]
[1771476262612,1.26660257,1975.5,1974.8,0.45854121]
[1771476262809,0.05058438,1975.4,1974.8,0.45854121]
[1771476263338,1.31718695,1975.5,1974.9,1.26588688]
[1771476263505,1.31718695,1975.5,1974.9,1.72442809]
[1771476264840,0.46069397,1975.4,1974.6,1.72462041]
[1771476265141,7.95864679,1975.5,1974.7,0.45854121]
[1771476265142,0.05058438,1975.3,1974.7,0.45854121]
[1771476265338,0.05058438,1975.4,1974.8,1.26595098]
[1771476265906,0.05058438,1975.4,1974.8,1.72449219]
[1771476266235,0.0011,1975.5,1974.9,0.45854121]
[1771476267429,0.0011,1975.5,1975.0,1.72436399]
[1771476268538,0.0011,1975.4,1975.0,1.72436399]
[1771476270133,0.0011,1975.4,1975.1,0.4581135]
[1771476272526,0.0011,1975.4,1975.2,1.72380811]
[1771476275309,0.0011,1975.4,1974.9,1.72397438]
[1771476277553,0.0011,1975.4,1974.9,1.26586088]
[1771476277724,17.969538,1975.3,1974.6,0.001]
[1771476277914,0.0011,1975.4,1974.6,0.001]
[1771476277915,0.45945847,1975.2,1974.6,0.001]
[1771476278754,0.45945847,1975.1,1974.5,0.001]
[1771476279211,1.26582278,1975.0,1974.5,0.001]
[1771476279413,0.45945847,1974.9,1974.0,2.79152432]
[1771476280111,0.45945847,1974.7,1973.9,0.4581135]
[1771476280346,1.26582278,1975.0,1973.9,0.4581135]
[1771476281218,1.26582278,1975.0,1974.1,0.4581135]
[1771476282690,1.72528125,1975.0,1974.7,0.001]
[1771476282886,1.72528125,1975.0,1974.1,0.4581135]
[1771476283234,1.72528125,1975.0,1974.5,0.001]
[1771476283564,1.72528125,1975.0,1974.1,0.4581135]
[1771476283565,1.72528125,1975.0,1974.4,0.001]
[1771476284359,0.45945847,1974.9,1974.1,1.72446413]
[1771476284565,0.45945847,1974.9,1974.1,1.26635063]
[1771476284738,0.45945847,1974.9,1974.0,1.26642173]
[1771476285333,0.45945847,1974.9,1973.8,2.79165083]
[1771476285334,0.45945847,1974.8,1973.8,2.79165083]
[1771476285530,1.72547356,1974.7,1973.8,2.79165083]
[1771476285736,1.72547356,1974.7,1973.9,0.4581135]
[1771476287269,0.45945847,1974.6,1973.8,2.33353733]
[1771476287570,1.26614332,1974.5,1973.8,2.79165083]
[1771476288567,1.2661311,1974.6,1973.9,0.4581135]
[1771476290254,5.06418173,1974.7,1974.0,1.72457753]
[1771476291578,0.05058438,1974.6,1974.0,1.72457753]
[1771476291780,0.05058438,1974.6,1974.0,0.4581135]
[1771476292085,0.05058438,1974.6,1973.9,1.26648183]
[1771476292283,1.26614332,1974.5,1973.9,1.26648183]
[1771476292459,1.26614332,1974.5,1973.8,2.79166761]
[1771476293290,0.45945847,1974.4,1973.6,1.26667899]
[1771476293901,0.45945847,1974.4,1973.4,1.7249155]
[1771476294495,0.45945847,1974.2,1973.4,1.7249155]
[1771476295082,0.45945847,1974.2,1973.7,0.001]
[1771476295260,1.26627158,1974.3,1973.7,0.001]
[1771476295897,1.72573005,1974.3,1973.7,0.001]
[1771476297087,0.45945847,1974.3,1973.7,0.001]
[1771476299188,1.7257942,1974.2,1973.7,0.001]
[1771476299388,1.77637858,1974.2,1973.6,1.26672071]
[1771476300459,1.77637858,1974.2,1973.5,1.72484553]
[1771476301087,0.51004285,1974.2,1973.5,1.72484553]
[1771476302988,0.46972675,1974.1,1973.5,1.26673203]
[1771476303486,0.46972675,1974.1,1973.4,2.80462489]
[1771476303786,0.46972675,1974.1,1973.5,0.4787758]
[1771476303980,1.31697624,1974.2,1973.5,0.4787758]
[1771476304189,1.78670299,1974.2,1973.5,0.4787758]
[1771476305380,0.46972675,1974.1,1973.5,1.74554953]
[1771476305781,0.46972675,1974.1,1973.4,6.12638438]
[1771476306092,0.46972675,1974.1,1973.4,2.80462489]
[1771476307288,1.31697624,1974.2,1973.4,2.80462489]
[1771476307289,1.31697624,1974.2,1973.5,0.4787758]
[1771476307492,1.31697624,1974.2,1973.6,1.26672071]
[1771476307892,6.04268469,1974.5,1973.7,0.4787758]
[1771476307893,1.73702381,1974.5,1973.7,0.4787758]
[1771476308198,0.52031113,1974.4,1973.6,1.26672071]
[1771476308377,0.52031113,1974.4,1973.6,1.74549651]
[1771476309071,0.52031113,1974.4,1973.7,0.4787758]
[1771476309273,1.26729706,1974.5,1973.7,0.4787758]
[1771476309274,0.05168438,1974.5,1973.7,0.4787758]
[1771476309474,0.0011,1974.5,1973.9,0.4787758]
[1771476309878,0.0011,1974.5,1974.1,0.4787758]
[1771476312166,0.0011,1974.5,1974.2,1.74511153]
[1771476312466,0.0011,1974.5,1974.3,0.4787758]
[1771476312678,0.0011,1974.5,1974.2,1.26633573]
[1771476313274,0.0011,1974.5,1974.2,1.74511153]
[1771476322310,0.0011,1974.5,1974.3,0.4787758]
[1771476323887,0.0011,1974.5,1974.4,1.74498325]
[1771476324321,0.0011,1974.5,1974.4,2.32920745]
[1771476327321,0.0011,1974.5,1974.4,2.80798325]
[1771476327697,0.0011,1974.5,1974.4,2.32920745]
[1771476328802,1.26576542,1975.1,1974.4,2.32920745]
[1771476328803,0.0011,1975.4,1974.5,0.4787758]
[1771476329093,0.46972675,1975.2,1974.6,1.066]
[1771476329411,0.52031113,1975.2,1974.6,1.066]
[1771476331800,1.75426443,1975.1,1974.6,2.33206316]
[1771476332003,0.48850574,1975.1,1974.6,2.33206316]
[1771476332810,1.31632913,1975.2,1974.6,1.066]
[1771476332811,0.48850574,1974.9,1974.6,1.066]
[1771476333016,1.26574475,1975.2,1974.3,0.912]
[1771476333017,0.53909012,1974.8,1974.4,1.066]
[1771476333326,0.53909012,1974.8,1974.3,0.912]
[1771476333926,1.80509468,1974.8,1974.3,0.912]
[1771476334532,0.48850574,1974.7,1974.1,2.33238464]
[1771476336825,0.48850574,1975.1,1974.2,0.46733551]
[1771476337027,0.05058438,1975.0,1974.2,0.46733551]
[1771476337221,0.53909012,1975.0,1974.2,0.46733551]
[1771476338222,0.0011,1974.6,1974.2,0.46733551]
[1771476338823,0.0011,1974.6,1974.4,0.46733551]
[1771476341033,0.0011,1974.6,1974.5,1.26614332]
[1771476342809,0.0011,1974.6,1974.5,1.73347883]
[1771476344120,0.0011,1974.6,1974.5,2.80247883]
[1771476346621,0.0011,1974.9,1974.6,0.46733551]
[1771476348740,0.0011,1974.9,1974.7,1.26601509]
[1771476349945,0.0011,1974.9,1974.7,1.7333506]
[1771476350829,0.0011,1974.9,1974.8,1.071]
[1771476352249,0.0011,1974.9,1974.8,1.53833551]
[1771476352449,0.0011,1974.9,1974.8,1.071]
[1771476352952,0.0011,1974.9,1974.8,2.33695098]
[1771476355241,0.0011,1974.9,1974.8,1.071]
[1771476357646,0.48960574,1974.9,1974.6,1.074]
[1771476358255,0.0011,1974.9,1974.6,2.34007713]
[1771476359431,0.0011,1974.9,1974.6,1.074]
[1771476359637,0.48172072,1974.9,1974.6,1.074]
[1771476360938,0.48172072,1974.9,1974.6,2.34006765]
[1771476361336,0.48172072,1974.9,1974.6,1.074]
[1771476361669,0.48172072,1974.9,1974.6,2.34007511]
[1771476361846,0.0011,1974.9,1974.6,2.34007511]
[1771476362540,0.48172072,1974.9,1974.6,1.074]
[1771476362767,0.48172072,1974.9,1974.6,2.34007023]
[1771476363061,0.48172072,1974.9,1974.6,2.34007473]
[1771476363240,0.48172072,1974.9,1974.6,1.074]
[1771476363445,1.74761001,1974.9,1974.6,1.074]
[1771476364269,1.74761001,1974.9,1974.4,1.26618154]
[1771476364665,0.48172072,1974.9,1974.4,1.26618154]
[1771476366591,0.48172072,1974.9,1974.5,0.001]
[1771476366883,0.48172072,1974.8,1974.5,0.001]
[1771476369276,1.7476772,1974.8,1974.5,0.001]
[1771476369450,0.48172072,1974.8,1974.5,0.001]
[1771476370571,1.7476722,1974.8,1974.5,0.001]
[1771476370748,0.48172072,1974.8,1974.5,0.001]
[1771476371447,0.0011,1974.8,1974.5,0.001]
[1771476373175,0.0011,1975.1,1974.6,0.47240879]
[1771476373378,0.0011,1975.4,1974.9,0.47240879]
[1771476376080,0.0011,1975.4,1975.0,1.26582278]
[1771476380186,0.0011,1975.6,1975.1,0.47240879]
[1771476380594,0.0011,1975.6,1975.2,0.47240879]
[1771476380960,5.54753846,1976.0,1975.2,0.47240879]
[1771476380961,0.48062072,1976.9,1975.6,0.47240879]
[1771476381175,0.48062072,1976.6,1975.8,0.47240879]
[1771476381364,0.48062072,1976.4,1975.9,1.26524621]
[1771476381564,5.54753846,1976.3,1975.7,3.44474313]
[1771476381769,5.54753846,1976.3,1975.7,2.97233434]
[1771476381770,6.02815918,1976.3,1975.7,2.97233434]
[1771476382989,5.87815918,1976.3,1975.7,2.97233434]
[1771476384369,0.48062072,1976.2,1975.7,1.707]
[1771476384573,5.54753846,1976.1,1975.7,1.707]
[1771476384771,0.48062072,1976.2,1975.7,1.707]
[1771476385173,0.48062072,1976.2,1975.7,2.97237334]
[1771476385590,1.26483586,1976.6,1975.8,0.47240879]
[1771476385789,0.48062072,1976.7,1975.8,0.47240879]
[1771476385962,5.54753846,1976.6,1975.8,0.47240879]
[1771476386162,0.48062072,1976.5,1975.7,2.97237334]
[1771476386688,0.48062072,1976.5,1975.7,3.44478213]
[1771476387866,0.48062072,1976.3,1975.7,2.97237334]
[1771476388082,5.54753846,1976.2,1975.7,2.97237334]
[1771476388385,0.48062072,1976.3,1975.7,3.44478213]
[1771476390488,0.49815462,1976.5,1975.7,3.44478213]
[1771476392189,0.0011,1976.4,1975.7,3.44478213]
[1771476392886,0.0011,1976.4,1975.8,0.47067807]
[1771476393474,0.49925462,1976.4,1975.8,0.47067807]
[1771476393789,0.49815462,1976.3,1975.7,3.44305141]
[1771476394662,6.81360553,1976.4,1975.7,2.97237334]
[1771476394865,0.0011,1976.4,1975.8,0.47067807]
[1771476397495,0.0011,1976.4,1975.9,1.73592428]
[1771476399792,0.49815462,1976.3,1975.1,0.001]
[1771476399995,5.54753846,1975.7,1975.2,0.795]
[1771476400177,6.04569308,1975.7,1975.0,1.26582278]
[1771476400772,0.49815462,1975.6,1975.0,1.26582278]
[1771476401198,0.49815462,1975.6,1974.9,1.265874]
[1771476401500,0.49815462,1975.6,1974.8,1.26691728]
[1771476401889,1.76365702,1975.5,1974.8,1.26691728]
[1771476402924,0.49815462,1975.4,1974.8,1.26691728]
[1771476404827,0.49815462,1975.4,1974.9,0.001]
[1771476405914,0.49815462,1975.6,1974.9,0.001]
[1771476406095,0.49815462,1975.5,1974.9,0.001]
[1771476407839,1.26540825,1975.7,1974.9,0.47167807]
[1771476407988,1.76356287,1975.7,1975.0,1.26582278]
[1771476408329,5.06050421,1976.1,1975.0,1.26582278]
[1771476408330,0.49815462,1976.1,1975.1,0.47067807]
[1771476410335,0.49815462,1975.9,1975.2,1.26569461]
[1771476412307,1.26522448,1976.0,1975.2,1.26569461]
[1771476412511,1.26522448,1976.0,1975.2,1.73637268]
[1771476412711,0.49815462,1975.9,1975.3,0.47067807]
[1771476413006,0.49815462,1975.9,1975.2,1.26569461]
[1771476414733,1.26522448,1976.0,1975.2,1.26569461]
[1771476414938,1.26522448,1976.0,1975.3,0.47067807]
[1771476415139,0.49815462,1975.9,1975.2,1.26569461]
[1771476418037,0.49815462,1975.8,1975.2,1.26569461]
[1771476420749,0.51305111,1975.7,1975.2,1.26569461]
[1771476421144,1.77830179,1975.9,1975.2,1.77817177]
[1771476421349,0.0011,1976.0,1975.3,0.51247716]
[1771476421539,0.51415111,1976.0,1975.3,0.51247716]
[1771476421856,1.77934966,1976.0,1975.3,0.51247716]
[1771476422641,1.77934966,1976.0,1975.4,1.77804362]
[1771476423553,0.51305111,1975.9,1975.4,1.26556646]
[1771476423721,0.51305111,1975.9,1975.3,5.57474303]
[1771476423722,0.51305111,1975.9,1975.3,1.77809631]
[1771476423921,0.51305111,1975.8,1975.2,1.26565783]
[1771476425258,1.77839013,1975.8,1975.2,1.26565783]
[1771476426471,0.51305111,1975.6,1975.1,0.001]
[1771476426633,0.51305111,1975.4,1975.1,0.001]
[1771476429656,1.77864027,1975.4,1975.1,0.001]
[1771476430629,1.77863009,1975.4,1975.1,0.001]
[1771476449672,0.48764093,1975.2,1974.9,0.001]
[1771476450045,0.48764093,1975.0,1974.0,0.48296347]
[1771476450244,5.5435271,1974.5,1974.0,0.48296347]
[1771476450450,6.03116803,1974.7,1974.0,0.48296347]
[1771476450659,0.48764093,1974.7,1974.0,0.48296347]
[1771476451191,0.48764093,1974.6,1974.0,0.48296347]
[1771476451946,1.26614332,1974.5,1974.0,0.48296347]
[1771476452377,1.75375707,1974.6,1974.0,1.74942023]
[1771476454571,2.23195204,1974.8,1974.1,0.48296347]
[1771476454882,2.71959297,1974.8,1974.1,0.48296347]
[1771476456114,0.48764093,1974.7,1974.1,0.48296347]
[1771476456775,1.75370472,1974.7,1974.2,0.001]
[1771476457396,1.26589527,1974.9,1974.2,0.48396347]
[1771476457685,2.23289527,1974.9,1974.2,0.48396347]
[1771476457902,0.48764093,1974.8,1974.2,0.48396347]
[1771476458461,2.23289527,1974.9,1974.2,0.48396347]
[1771476458758,1.26589527,1974.9,1974.3,1.74923505]
[1771476459182,0.48764093,1974.8,1974.2,1.26728367]
[1771476459378,0.48764093,1974.8,1974.2,0.001]
[1771476460454,0.48764093,1974.8,1974.2,1.26732488]
[1771476460659,0.48764093,1974.9,1974.3,0.48296347]
[1771476460894,1.26588471,1975.0,1974.4,1.26620745]
[1771476461070,1.26588471,1975.0,1974.4,1.74917092]
[1771476461778,1.26580362,1975.1,1974.5,0.48296347]
[1771476462092,1.75344455,1975.1,1974.5,0.48296347]
[1771476462776,1.75344455,1975.1,1974.5,1.74906875]
[1771476463472,1.75344455,1975.1,1974.5,0.48296347]
[1771476463700,1.75344455,1975.1,1974.5,1.74909898]
[1771476463890,0.48764093,1975.0,1974.4,1.26616174]
[1771476464289,0.48764093,1975.0,1974.4,1.74912521]
[1771476464703,1.26580362,1975.1,1974.5,0.48296347]
[1771476464898,1.26580362,1975.1,1974.5,1.74910133]
[1771476465106,0.48764093,1975.0,1974.4,1.26617642]
[1771476465278,0.48764093,1975.0,1974.4,1.74913989]
[1771476466158,6.8141088,1975.1,1974.2,0.001]
[1771476466159,5.54830518,1974.7,1974.2,0.001]
[1771476466407,0.48764093,1974.6,1974.2,0.001]
[1771476467101,1.75375887,1974.6,1974.2,0.001]
[1771476467819,1.26601573,1974.7,1974.2,0.001]
[1771476468105,1.75365666,1974.7,1974.2,0.001]
[1771476469506,7.30196184,1974.7,1974.2,0.001]
[1771476470213,7.30306184,1974.7,1974.2,0.001]
[1771476475136,0.48764093,1974.6,1974.2,0.001]
[1771476475711,6.03594611,1974.5,1974.0,0.001]
[1771476475915,0.48764093,1974.4,1974.0,0.001]
[1771476476640,1.26627158,1974.3,1974.0,0.001]
[1771476478912,1.75388126,1974.4,1974.0,0.001]
[1771476480042,5.54830518,1974.3,1974.0,0.001]
[1771476480246,0.48569486,1974.3,1973.7,1.052]
[1771476480420,0.48569486,1974.1,1973.7,1.052]
[1771476480621,0.48569486,1974.1,1973.5,2.64503499]
[1771476480940,1.26646403,1974.0,1973.5,1.37825119]
[1771476481112,1.26646403,1974.0,1973.5,2.64503177]
[1771476481318,1.75214753,1974.1,1973.5,2.64503177]
[1771476481852,0.975,1974.3,1973.6,0.46625119]
[1771476482756,0.48569486,1974.2,1973.6,0.46625119]
[1771476483326,1.26639987,1974.1,1973.6,1.73396553]
[1771476483850,1.75209473,1974.1,1973.6,0.001]
[1771476484249,1.75209473,1974.1,1973.6,1.26771599]
[1771476485128,1.75209473,1974.1,1973.6,0.001]
[1771476486223,1.75209473,1974.1,1973.5,0.001]
[1771476486224,6.03400004,1973.9,1973.5,0.001]
[1771476486637,6.03400004,1973.7,1973.0,0.46625119]
[1771476487759,6.03400004,1973.7,1973.1,1.7332929]
[1771476487760,7.3007017,1973.7,1973.1,1.7332929]
[1771476488752,0.48569486,1973.6,1973.1,1.26704171]
[1771476489355,0.48569486,1973.6,1973.0,1.7333151]
[1771476489964,6.81500684,1973.7,1973.1,0.46625119]
[1771476490157,7.3007017,1973.7,1973.1,0.46625119]
[1771476491061,5.54830518,1973.7,1973.1,0.46625119]
[1771476491232,4.579,1973.8,1973.1,0.46625119]
[1771476492362,4.579,1973.8,1973.3,0.46625119]
[1771476493430,5.84559431,1973.8,1973.3,0.46625119]
[1771476493937,4.579,1973.8,1973.3,0.46625119]
[1771476494140,5.84559407,1973.8,1973.3,0.46625119]
[1771476494544,5.84559407,1973.8,1973.2,0.46625119]
[1771476496486,5.54830518,1973.3,1972.4,0.46625119]
[1771476496783,8.28292111,1973.3,1972.5,0.46625119]
[1771476496990,5.54830518,1973.1,1972.5,0.46625119]
[1771476497491,5.06717625,1973.5,1973.3,0.001]
[1771476497492,6.03400004,1973.5,1973.3,0.001]
[1771476497656,6.03400004,1973.5,1972.4,1.26748311]
[1771476497657,7.01700004,1973.5,1972.7,0.46625119]
[1771476498165,7.01700004,1973.5,1972.4,1.26748311]
[1771476498166,5.54830518,1973.1,1972.4,0.46625119]
[1771476498357,1.46869486,1973.2,1972.4,0.46625119]
[1771476498557,2.73572039,1973.2,1972.6,0.46625119]
[1771476499271,7.30094463,1973.3,1972.6,0.46625119]
[1771476499475,1.26689376,1973.4,1972.6,0.46625119]
[1771476500357,5.54830518,1973.3,1972.6,0.46625119]
[1771476500703,6.81522283,1973.3,1972.8,0.46625119]
[1771476501001,5.54830518,1973.1,1972.4,5.53605292]
[1771476501364,0.48569486,1973.2,1972.4,0.46625119]
[1771476502978,1.26704171,1973.1,1972.5,1.73367831]
[1771476503791,5.55363416,1973.2,1972.5,1.73367831]
[1771476503792,1.26702574,1973.2,1972.6,0.46625119]
[1771476504396,0.48569486,1973.1,1972.5,1.26742712]
[1771476504576,1.26692255,1973.3,1972.6,0.46625119]
[1771476504776,1.75258241,1973.4,1972.6,0.46625119]
[1771476505300,6.03400004,1973.3,1972.7,1.26729862]
[1771476505672,6.03400004,1973.1,1972.4,1.73370408]
[1771476505877,5.54830518,1973.3,1972.5,0.46625119]
[1771476505878,6.03400004,1973.3,1972.5,0.46625119]
[1771476507109,1.26688755,1973.4,1972.5,0.46625119]
[1771476507598,5.54830518,1973.3,1972.7,0.46625119]
[1771476509278,6.03400004,1973.3,1972.7,0.46625119]
[1771476509983,1.26697749,1973.2,1972.7,1.73453697]
[1771476510882,1.73552521,1973.2,1972.7,0.001]
[1771476511371,1.73552521,1973.2,1972.7,1.26829853]
[1771476511806,1.73552521,1973.2,1972.7,0.001]
[1771476512008,1.73552521,1973.2,1972.7,1.26829147]
[1771476513406,1.73552521,1973.2,1972.7,0.001]
[1771476513623,0.46854772,1973.1,1972.7,0.001]
[1771476514806,1.7355976,1973.1,1972.7,0.001]
[1771476518419,1.26704988,1973.1,1972.7,0.001]
[1771476518622,6.0168529,1972.9,1972.1,1.72195956]
[1771476518797,1.26723438,1972.8,1972.2,1.7218462]
[1771476519186,1.7357821,1972.8,1972.2,0.45427537]